Cogmind - Beta 9.2 @@@ ROGUE MODE // 2019.11.27 @ 22:04:17 Player: Cassie Rose Result: Destroyed by G-47 Trooper with Particle Gun Performance ------------- Evolutions (2) 1000 Regions Visited (3) 600 Robots Destroyed (65) 325 Value Destroyed (1635) 1635 Prototype IDs (7) 140 Alien Tech Used (0) 0 Bonus (22) 22 TOTAL SCORE: 3722 Bonus ------- High Alert Combat Kills 22 Cogmind --------- Core Integrity 0/550 Matter 246/300 Energy 270/280 System Corruption 0% Temperature Cool (9) Movement Flying (102) Ox1 Location -8/Materials Parts ------- > --- POWER (1) -------- Cooled Ion Engine > --- PROPULSION (3) --- Improved VTOL Module Improved VTOL Module > --- UTILITY (5) ------ Improved Heat Sink Medium Storage Unit Weight Redist. System Improved Signal Interpreter > --- WEAPON (2) ------- Precision Beam Rifle Gauss Rifle > --- INVENTORY (8) ---- Cooled Ion Engine Advanced Targeting Computer Faulty Improved EM Shotgun Mini Grenade Launcher Datajack Peak State ------------ > --- POWER ------------ Improved Ion Engine > --- PROPULSION ------- Carbon-fiber Leg Improved VTOL Module Improved VTOL Module > --- UTILITY ---------- Medium Storage Unit Improved Signal Interpreter Improved Terrain Scanner ECM Suite Medium Armor Plating > --- WEAPON ----------- Heavy EM Shotgun Advanced Beam Cannon > --- INVENTORY -------- Heavy EM Shotgun Improved Assault Rifle Mini Grenade Launcher Datajack [Rating: 29] Favorites ----------- Power Improved Ion Engine Engine Improved Ion Engine Power Core Light Nuclear Core Propulsion Aluminum Leg Leg Aluminum Leg Wheel Armored Wheel Flight Unit Improved VTOL Module Utility Improved Signal Interpreter Device Improved Terrain Scanner Storage Medium Storage Unit Processor Improved Signal Interpreter Protection Medium Armor Plating Weapon Advanced Beam Cannon Energy Gun Spread Laser Energy Cannon Advanced Beam Cannon Ballistic Gun Improved Assault Rifle Launcher Mini Grenade Launcher Build | -11 -10 -9 -8 ------- Run | Scr Mat Mat Mat Slots Evolved 4 | . . 2 2 Power . | . . . . Propulsion 1 | . . 1 . Utility 3 | . . 1 2 Weapon . | . . . . Parts Attached 59 | 6 2 16 35 Power 7 | 1 . 1 5 Engine 6 | 1 . 1 4 Core 1 | . . . 1 Reactor . | . . . . Propulsion 14 | 2 . 1 11 Treads . | . . . . Leg 6 | 2 . . 4 Wheel 1 | . . 1 . Hover . | . . . . Flight 7 | . . . 7 Utility 17 | 1 2 5 9 Device 9 | . 1 3 5 Storage 4 | 1 . . 3 Processor 2 | . 1 1 . Hackware . | . . . . Protection 2 | . . 1 1 Artifact . | . . . . Weapon 21 | 2 . 9 10 Energy Gun 10 | 2 . 3 5 Energy Cannon 4 | . . 3 1 Ballistic Gun 6 | . . 3 3 Ballistic Cannon . | . . . . Launcher 1 | . . . 1 Special Weapon . | . . . . Impact Weapon . | . . . . Slashing Weapon . | . . . . Piercing Weapon . | . . . . Special Melee Weapon . | . . . . Unidentified Prototypes 8 | . . 3 5 Parts Lost 20 | . . 7 13 Power 3 | . . 1 2 Propulsion 5 | . . 1 4 Utility 6 | . . 2 4 Weapon 6 | . . 3 3 Highest Loss Streak 5 | . . 3 5 Average Slot Usage (%) 84 | . 95 75 87 Engine 9 | . 14 10 7 Leg 11 | . 28 15 6 Wheel 2 | . . 1 3 Flight 7 | . . . 12 Device 16 | . 9 15 18 Storage 5 | . 4 . 9 Processor 9 | . 9 11 9 Protection 3 | . . 1 4 Energy Gun 8 | . 28 6 7 Energy Cannon 4 | . . 4 5 Ballistic Gun 4 | . . 8 2 Naked Turns . | . . . . Heaviest Build 32 | 10 10 22 32 Greatest Support 30 | 20 20 20 30 Greatest Overweight (x) 5 | 2 . 1 5 Average Overweight (x) . | . . . 1 Largest Inventory Capacity 8 | 6 6 4 8 Average Capacity 6 | 5 4 4 7 Most Carried 6 | 4 5 4 6 Average Carried 3 | 1 3 3 3 Final Capacity 8 | 6 4 4 8 Final Carried 5 | 1 4 4 5 Class Distribution -------------------- 88% | Mutant 6% | Skirmisher 4% | Scavenger-Mutant Dominant Class ---------------- Mutant | -10/Materials Mutant | -9/Materials Mutant | -8/Materials Resources | -11 -10 -9 -8 ----------- Run | Scr Mat Mat Mat Matter Collected 1037 | 134 13 298 592 Remotely . | . . . . Salvage Created 2331 | 82 13 512 1724 Parts 130 | 5 6 41 78 Haulers Intercepted 6 | . . 2 4 Recyclers Shooed 3 | . . . 3 Parts Field Recycled . | . . . . Retrieved Matter . | . . . . Parts Self-Destructed . | . . . . Prevented . | . . . . Kills | -11 -10 -9 -8 ------- Run | Scr Mat Mat Mat Combat Hostiles Destroyed 43 | . . 17 26 Guns 30 | . . 11 19 Cannons 10 | . . 5 5 AOE 2 | . . 1 1 Classes Destroyed 11 | 2 1 4 4 Worker 3 | . . . 3 Builder 1 | . . 1 . Tunneler 2 | 1 . . 1 Hauler 6 | . . 2 4 Recycler 4 | 1 . . 3 Watcher 6 | . 1 . 5 Swarmer 17 | . . 14 3 Grunt 16 | . . . 16 Brawler 1 | . . . 1 Sentry 8 | . . 3 5 Hunter 1 | . . . 1 Best Kill Streak 11 | 2 1 9 11 Combat Bots Only 8 | . . 8 4 Max Kills in Single Turn 2 | 1 1 2 2 Gunslinging . | . . . . Exploded 1 | . . 1 1 Melee . | . . . . Uniques/NPCs Destroyed . | . . . . Combat | -11 -10 -9 -8 -------- Run | Scr Mat Mat Mat Damage Taken 2508 | . . 674 1834 Core 698 | . . 133 565 Absorbed by Shields . | . . . . Core Remaining (%) 88 | 100 100 66 . Volleys Fired 194 | 9 1 53 131 Largest 2 | 2 2 2 2 Hottest 118 | 90 90 101 118 Shots Fired 257 | 16 2 65 174 Gun 185 | 16 2 49 118 Cannon 63 | . . 16 47 Launcher 9 | . . . 9 Special . | . . . . Kinetic 75 | . . 15 60 Thermal 118 | 16 2 31 69 Explosive 9 | . . . 9 Electromagnetic 55 | . . 19 36 Robot Hit Streak 18 | 7 1 6 18 Robot Miss Streak 5 | 1 1 4 5 Penetration Max 1 | . . . 1 Secondary Targets . | . . . . Shots Hit Robots 181 | 12 1 39 129 Core Hits 105 | 3 1 24 77 Critical Hits 10 | . . 2 8 Critical Kills 5 | . . 2 3 Critical Parts Destroyed 5 | . . . 5 Melee Attacks . | . . . . Impact . | . . . . Slashing . | . . . . Piercing . | . . . . Sneak Attacks . | . . . . Combat Hostiles . | . . . . Follow-up Attacks . | . . . . Damage Inflicted 3902 | 126 12 607 3157 Guns 2462 | 126 12 339 1985 Cannons 918 | . . 202 716 Explosions 522 | . . 66 456 Melee . | . . . . Ramming . | . . . . Kinetic 1020 | . . 67 953 Thermal 1638 | 126 12 385 1115 Explosive 352 | . . . 352 Electromagnetic 892 | . . 155 737 Impact . | . . . . Slashing . | . . . . Piercing . | . . . . Highest Corruption 8 | . . 8 . Average Corruption 6 | . . 6 . Corruption Purged . | . . . . Effects 29 | . . 29 . Message Errors 7 | . . 7 . Matter Fused 5 | . . 5 . Heat Flow Errors 1 | . . 1 . Energy Discharges 5 | . . 5 . Data Loss (minor) 5 | . . 5 . Data Loss (major) 1 | . . 1 . Misfires 1 | . . 1 . Targeting Errors 2 | . . 2 . Weapon Failures 2 | . . 2 . Overload Shots . | . . . . Overflow Damage 31 | . . . 31 Projectiles . | . . . . Explosions 31 | . . . 31 Melee . | . . . . Knockbacks . | . . . . Impact . | . . . . Kinetic . | . . . . Secondary . | . . . . Self-Inflicted Damage 185 | . . 52 133 Shots 6 | . . 2 4 Rammed . | . . . . Targets Rammed . | . . . . Kicked . | . . . . Crushed . | . . . . Highest Temperature 357 | 210 30 264 357 Average Temperature 90 | 117 18 80 92 Received Heat Transfer 702 | . . 72 630 Effects 3 | 2 . . 1 Shutdowns 1 | . . . 1 Interference 2 | 2 . . . Siege Activations . | . . . . Robots Corrupted 1 | . . . 1 Combat Hostiles 1 | . . . 1 Parts Fried 3 | . . . 3 Impact Corruptions . | . . . . Robots Melted . | . . . . Combat Hostiles . | . . . . Parts Melted 3 | . . . 3 Heat Transferred 3183 | 335 25 840 1983 Parts Sabotaged . | . . . . Parts Stolen . | . . . . Parts Stripped . | . . . . Power Chain Reactions 3 | . . 2 1 Missiles Intercepted . | . . . . Alert | -11 -10 -9 -8 ------- Run | Scr Mat Mat Mat Peak Influence 436 | 10 28 293 436 Average Influence 114 | 3 25 108 139 Maximum Alert Level 2 | . . 1 2 Low Security (%) 84 | 100 100 92 76 Level 1 13 | . . 7 20 Level 2 2 | . . . 3 Level 3 . | . . . . Level 4 . | . . . . Level 5 . | . . . . High Security . | . . . . Max Security . | . . . . Squads Dispatched 6 | . . . 6 Investigation 2 | . . . 2 Extermination . | . . . . Reinforcement 3 | . . . 3 Assault . | . . . . Garrison 1 | . . . 1 Intercept . | . . . . Construction Impeded . | . . . . Haulers Reinforced . | . . . . Stealth | -11 -10 -9 -8 --------- Run | Scr Mat Mat Mat Distress Signals 4 | . . 1 3 Communications Jammed . | . . . . Distress Signals . | . . . . Times Spotted 75 | . 3 21 51 Peak Tracking Total 7 | . 2 5 7 Tactical Retreats 6 | . . 1 5 Traps | -11 -10 -9 -8 ------- Run | Scr Mat Mat Mat Traps Triggered 6 | . . 5 1 Indirectly . | . . . . Trap Hack Attempts . | . . . . Triggered . | . . . . Disarmed . | . . . . Reprogrammed . | . . . . Reused . | . . . . Traps Extracted . | . . . . Installed . | . . . . Triggered 1 | . . . 1 Machines | -11 -10 -9 -8 ---------- Run | Scr Mat Mat Mat Machines Disabled 6 | . . 2 4 Max in Single Turn 1 | . . 1 1 Machines Sabotaged . | . . . . Garrisons Compromised . | . . . . Overloaded Fab Kills . | . . . . Fab Network Shutdowns . | . . . . Hacking | -11 -10 -9 -8 --------- Run | Scr Mat Mat Mat Machines Accessed 5 | . . 2 3 Terminals 5 | . . 2 3 Fabricators . | . . . . Repair Stations . | . . . . Recycling Units . | . . . . Scanalyzers . | . . . . Garrison Access . | . . . . Total Hacks 15 | . . 7 8 Successful 7 | . . 3 4 Failed 8 | . . 4 4 Catastrophic . | . . . . Database Lockouts . | . . . . Manual 12 | . . 7 5 Terminals 15 | . . 7 8 Fabricators . | . . . . Repair Stations . | . . . . Recycling Units . | . . . . Scanalyzers . | . . . . Garrison Access . | . . . . Terminal Hacks 2 | . . 1 1 Unreport Threat 1 | . . . 1 Zone Layout 1 | . . 1 . Fabricator Hacks . | . . . . Repair Station Hacks . | . . . . Recycling Unit Hacks . | . . . . Scanalyzer . | . . . . Garrison Access Hacks . | . . . . Unauthorized Hacks 14 | . . 6 8 Terminals 5 | . . 2 3 Assimilate 2 | . . 1 1 Botnet 3 | . . 1 2 Fabricators . | . . . . Repair Stations . | . . . . Recycling Units . | . . . . Scanalyzers . | . . . . Garrison Access . | . . . . Data Cores Recovered . | . . . . Used . | . . . . Hacking Detections 5 | . . 2 3 Full Trace Events 1 | . . . 1 Feedback Events . | . . . . Feedback Blocked . | . . . . Robot Schematics Acquired . | . . . . Robots Built . | . . . . Matter . | . . . . Time . | . . . . Total Robot Build Rating . | . . . . Part Schematics Acquired . | . . . . Parts Built . | . . . . Matter . | . . . . Time . | . . . . Total Part Build Rating . | . . . . Parts Repaired . | . . . . Time . | . . . . Parts Recycled . | . . . . Recycled Matter . | . . . . Retrieved Matter . | . . . . Retrieved Components . | . . . . Parts Scanalyzed . | . . . . Part Schematics Acquired . | . . . . Parts Damaged . | . . . . Bothacking | -11 -10 -9 -8 ------------ Run | Scr Mat Mat Mat Used RIF Installer . | . . . . Robots Hacked . | . . . . Non-combat . | . . . . Combat . | . . . . Robot Hacks Applied . | . . . . Relay Couplers Released . | . . . . Robots Rewired . | . . . . Allies Hacked . | . . . . Hacks Repelled . | . . . . Allies | -11 -10 -9 -8 -------- Run | Scr Mat Mat Mat Total Allies 1 | . . 1 . Largest Group 1 | . . 1 . Highest-Rated Group 10 | . . 10 . Highest-Rated Ally 10 | . . 10 . Total Orders . | . . . . Ally Attacks . | . . . . Total Damage . | . . . . Kills . | . . . . Allies Corrupted . | . . . . Allies Melted . | . . . . Intel | -11 -10 -9 -8 ------- Run | Scr Mat Mat Mat Robot Analysis Total . | . . . . Derelict Logs Recovered . | . . . . Drone Launches . | . . . . Drone Recoveries . | . . . . Exploration | -11 -10 -9 -8 ------------- Run | Scr Mat Mat Mat Turns Passed 2752 | 90 237 898 1527 Spaces Moved 1336 | 41 148 545 602 Core 27 | 18 . . 9 Treads . | . . . . Legs 815 | 23 148 436 208 Wheels 147 | . . 109 38 Hover . | . . . . Flight 347 | . . . 347 Fastest Speed 29 | 50 120 100 29 Average Speed 139 | 125 120 124 160 Slowest Speed 405 | 150 120 150 405 Overloaded Moves . | . . . . Propulsion Burnouts . | . . . . Robots Hopped . | . . . . Cave-ins Triggered . | . . . . Exploration Rate (%) 28 | 5 22 34 51 Regions Visited 3 Branch Regions . Pre-discovered Areas . | . . . . Known Exits Taken 2 | . 1 1 . Unknown Exits Taken 1 | 1 . . . Scrap Searched . | . . . . Spaces Dug . | . . . . Terrain Destroyed 54 | . . 5 49 Melee . | . . . . Projectile . | . . . . AOE 54 | . . 5 49 Actions | -11 -10 -9 -8 --------- Run | Scr Mat Mat Mat Total 1959 | 63 205 699 992 Wait 298 | 1 49 70 178 Move 1333 | 40 147 544 602 Hop . | . . . . Pick Up 54 | 7 5 11 31 Fast Attach 3 | . . 3 . Attach 33 | 6 1 7 19 Detach 2 | . . . 2 Swap 23 | . 1 6 16 Drop 19 | . 1 5 13 Fire 194 | 9 1 53 131 Melee . | . . . . Ram . | . . . . Kick . | . . . . Crush . | . . . . Escape Stasis . | . . . . Rewire . | . . . . Trap . | . . . . Miscellaneous . | . . . . Route ------- -11/Scrapyard -10/Materials -9/Materials (discovered 4 exits: *Mat / *Min / *Sto x2) -8/Materials History --------- Turn | Location | Event 7 | -11/Scrapyard | Discovered new exit (range 16) 91 | -11/Scrapyard | Entered Materials 300 | -10/Materials | Build established: Mutant 317 | -10/Materials | Discovered new exit (range 8) 327 | -10/Materials | Identified exit to Materials 328 | -10/Materials | Entered another Materials area 328 | -9/Materials | Evolved 2 slots: Propulsion x1, Utility x1 583 | -9/Materials | Destroyed 8 combat bots 634 | -9/Materials | Discovered new exit (range 4) 638 | -9/Materials | Identified exit to Storage 669 | -9/Materials | Discovered exit to Storage (range 4) 774 | -9/Materials | Lost 3 parts (1p1u1w) 1101 | -9/Materials | Discovered new exit (range 9) 1109 | -9/Materials | Identified exit to Mines 1200 | -9/Materials | Discovered new exit (range 16) 1220 | -9/Materials | Identified exit to Materials 1226 | -9/Materials | Entered another Materials area 1226 | -8/Materials | Evolved 2 slots: Utility x2 1938 | -8/Materials | Garrison activated, responded to threat 2365 | -8/Materials | Core integrity fell below 50% 2429 | -8/Materials | Lost 5 parts (1p2u2w) 2429 | -8/Materials | Core integrity fell below 20% 2753 | -8/Materials | Destroyed by G-47 Trooper with Particle Gun Last Messages --------------- 02622_ Acquired Weight Redist. System. 02624_ Dropped ECM Suite. 02635_ Slug penetrates Wall. 02646_ Slug penetrates G-47 Trooper. 02652_ G-47 Trooper destroyed. 02655_ Slug penetrates G-47 Trooper. 02661_ G-47 Trooper destroyed. 02668_ Acquired 48 matter. 02691_ Lgt. Armor Plating destroyed. 02691_ G-47 Trooper destroyed. 02697_ Acquired 42 matter. 02704_ Acquired 50 matter. 02725_ Destroyed Unknown Special Melee Weapon. 02725_ O-24 Administrator: "IFF HANDSHAKE FAILED. SECURING TERMINAL." 02732_ ALERT: Hostiles spotted, dispatching reinforcements to Terminal M011. 02735_ K-01 Serf cleans the Electrolysis Chamber. 02739_ Slug penetrates O-24 Administrator. 02752_ Slug penetrates G-47 Trooper. 02752_ G-47 Trooper destroyed. Map ----- +----------------------------------------------------+ | ?????????????????????????????????????? | | ### ??????????????????????????????????????? | | #?? ??????????????????????????????????????? | | ###??#####??????????????????????????????????????? | | ??????????????????????????????????????????? | | ?????????????????????????????????????????? | | ?????????????????????????????????????????? | | #### ?????????????????????????????????????????? | | ##???? ?????????????????????????????????????????? | | ????? ???????????????????????????????????????? | | ????? #??????????????????????????????????????? | | ##### #?????????T"???????????????????????????? | | T????????# "####???????????????????????? | | #???????# +???????????????????????? | | #???????# ##+?????????????????????? | | #???????# ??????????????????????? | | #####???# #??????????????????????? | | #"""#???# #??????????????????????? | | #"T"##### k #??????????????????????? | | #??????????????????????? | | #???# #??????????????????????? | | #???# """ """ """ #??????????????????????? | | #+##??# """ """ """ #??????????????????????? | | #??# """ """ """ #??????????????????????? | | "" #### ########???????????????? | | "" + k @ %g/k[ =????????? | | "" ###############################???????????????? | | #?????????????????????????????????????????????? | | #?????????????????????????????????????????????? | | #?????????????????????????????????????????????? | | ####?????????????????????????????????????????????? | | | | | | | | | | | | | | | | | | | | | | | | | | | | | | | | | | | | | | | +----------------------------------------------------+ Best States ------------- Heat Dissipation 45 Energy Generation 14 Energy Capacity 280 Matter Stores 300 Matter Capacity 300 Sight Range 16 Robot Scan Range 13 Terrain Scan Range 16 Terrain Scan Density 10 ECM Strength 1 Additional Mass Support 6 Armor Coverage 225 Evasion (%) 64 Item Schematics ----------------- None Robot Schematics ------------------ None Fabricated ------------ Nothing Alien Tech Used ----------------- None Achievements -------------- None Challenges ------------ None Game ------ Seed DroneXenonSword Manual? 0 Play Time 00:39:15 Cumulative 41.1 hours Start 2019.11.27 @ 21:26:28 End 2019.11.27 @ 22:04:17 Sessions 1 Manual Loads 0 Difficulty Rogue Special Mode None Game No. 57 Rogue 57 Adventurer 0 Explorer 0 Win Type - Total 0 Types 0/0/0/0/0/0/0 Lore% 21 Gallery% 21 Achievement% 21 Wizard Run 0 Options --------- ASCII 0 Keyboard 0 Movement Arrows Keybinds 0 Fullscreen 1 Font 18/SmallcapsGlow Map View 76x50 Tactical HUD 1 Map Filters NONE Filters LOW_CONTRAST(13,24,33)|BRIGHTNESS(120)|SATURATION(80) Steam 1 RUN: 389b2144-4242-4b52-867e-6a14e5e81cd8